bitfinex/quotes_ETHUSD_20260113
["timestamp","ask_amount","ask_price","bid_price","bid_amount"]
[1768334796856,4.92548703,3212.9,3212.3,0.001]
[1768334797055,1.05101794,3212.8,3212.3,0.001]
[1768334798525,4.16359517,3212.8,3212.3,0.001]
[1768334798728,4.20250204,3212.8,3212.3,0.001]
[1768334798927,0.49644614,3212.7,3212.3,0.001]
[1768334799324,0.76195939,3212.9,3212.3,0.001]
[1768334802760,4.92546738,3212.9,3212.3,0.001]
[1768334803341,1.05101794,3212.8,3212.3,0.001]
[1768334803730,0.76195939,3212.9,3212.3,0.001]
[1768334803952,3.87441604,3212.9,3212.3,0.001]
[1768334804152,0.3874416,3212.8,3212.3,0.001]
[1768334804367,3.11245802,3212.9,3212.6,0.001]
[1768334804532,3.11236713,3213.0,3212.3,0.001]
[1768334806567,3.35636713,3213.0,3212.3,0.001]
[1768334807646,1.0899236,3212.9,3212.3,0.001]
[1768334808339,0.244,3213.0,3212.3,0.001]
[1768334808671,3.1125498,3212.8,3212.3,0.001]
[1768334808977,1.08992602,3212.7,3212.0,0.001]
[1768334809177,1.05101794,3212.5,3211.7,0.00080096]
[1768334809349,9.3376494,3212.8,3211.4,0.00082756]
[1768334809350,1.05101794,3212.3,3211.4,0.00082756]
[1768334809675,1.0518189,3212.1,3211.4,0.00082756]
[1768334810443,0.03971631,3212.1,3211.4,0.00082756]
[1768334810638,0.62659787,3212.0,3211.4,0.00082756]
[1768334810842,0.244,3211.9,3211.4,0.00082756]
[1768334813026,0.244,3211.9,3211.4,1.02590602]
[1768334813222,0.24480096,3212.1,3211.5,1.02507846]
[1768334813503,0.24480096,3212.1,3211.6,1.02507846]
[1768334814090,0.24480096,3212.1,3211.4,4.65133354]
[1768334814278,0.24480096,3212.1,3211.4,5.676412]
[1768334814495,0.244,3212.5,3211.7,1.0258795]
[1768334814798,0.244,3212.7,3211.8,1.02507846]
[1768334814976,1.29501794,3212.7,3211.8,0.41394798]
[1768334815181,0.89087343,3212.9,3211.9,1.02507846]
[1768334815500,4.00333358,3212.9,3211.9,1.02507846]
[1768334815704,0.89087343,3212.9,3211.9,1.02507846]
[1768334816050,4.0033272,3212.9,3211.9,1.02507846]
[1768334816369,4.04223286,3212.9,3211.9,1.02507846]
[1768334816598,4.0033272,3212.9,3211.9,1.48052009]
[1768334816802,0.03890687,3212.8,3211.9,0.45544163]
[1768334817002,0.03890687,3212.8,3211.8,0.41394798]
[1768334817571,1.08992481,3212.8,3211.7,0.00180104]
[1768334818707,4.20250456,3212.8,3211.7,0.00180104]
[1768334819306,3.11416565,3213.2,3212.3,1.02507846]
[1768334819483,0.246,3213.2,3212.1,1.02507846]
[1768334819688,0.246,3213.2,3212.1,1.5926369]
[1768334819890,1.29701794,3213.2,3212.1,1.5926369]
[1768334820104,1.05101794,3213.1,3212.1,1.5926369]
[1768334820318,1.05101794,3213.1,3211.7,3.11541688]
[1768334820319,1.08992239,3213.0,3211.8,1.02507846]
[1768334820598,1.08992239,3213.0,3211.7,0.00180104]
[1768334820804,1.05101794,3212.8,3211.7,0.00180104]
[1768334821011,1.05101794,3212.2,3211.7,0.00180104]
[1768334821181,1.90408568,3212.1,3211.7,0.00180104]
[1768334821383,0.244,3212.0,3211.4,0.00082756]
[1768334821693,0.03891777,3211.9,3211.4,0.00082756]
[1768334823083,0.244,3212.0,3211.4,0.00082756]
[1768334823283,3.35733233,3212.0,3211.4,0.00082756]
[1768334823809,0.244,3212.0,3211.4,0.00082756]
[1768334824112,0.89112296,3212.0,3211.4,0.00082756]
[1768334825111,0.64712296,3212.0,3211.4,1.0290672]
[1768334825279,0.244,3211.9,3211.4,1.0290672]
[1768334826422,0.244,3211.9,3211.4,0.00082756]
[1768334827188,0.244,3211.9,3211.7,0.001]
[1768334827410,0.002,3211.7,3211.4,0.00082756]
[1768334828111,0.002,3212.0,3211.4,1.0290672]
[1768334828581,0.002,3212.0,3211.4,0.00082756]
[1768334829020,3.11532503,3212.0,3211.4,0.00082756]
[1768334829311,3.11351889,3211.8,3211.4,0.00082756]
[1768334829637,1.01195417,3211.7,3210.6,1.2481027]
[1768334829798,1.25595417,3211.6,3210.6,1.2481027]
[1768334831237,1.01195417,3211.4,3210.6,1.2481027]
[1768334831391,0.72395737,3211.3,3210.6,1.2481027]
[1768334832797,1.01195417,3211.2,3210.6,1.2481027]
[1768334833017,1.25595417,3211.1,3210.6,1.2481027]
[1768334833323,1.01195417,3210.9,3209.9,1.02822505]
[1768334833527,6.22858922,3211.0,3209.8,0.001]
[1768334833528,1.01195417,3210.7,3209.8,0.001]
[1768334833835,0.244,3210.6,3209.8,0.001]
[1768334834040,1.25595417,3210.6,3209.8,0.001]
[1768334834827,0.72405434,3210.8,3209.8,0.001]
[1768334834828,0.244,3210.5,3209.8,0.001]
[1768334835140,0.244,3210.4,3209.9,1.02823964]
[1768334835341,6.22848274,3211.1,3210.1,1.02823964]
[1768334835643,1.01195417,3211.7,3210.0,0.41446891]
[1768334835644,1.01195417,3211.7,3210.6,1.02823964]
[1768334835816,1.01195417,3211.7,3210.7,0.03114585]
[1768334836004,0.0389214,3211.6,3210.6,1.02823964]
[1768334836328,1.01195417,3211.7,3210.6,1.02823964]
[1768334837241,1.01195417,3211.7,3210.8,0.99247048]
[1768334838405,0.0389214,3211.6,3210.2,0.244]
[1768334838633,0.41644958,3211.5,3210.3,0.99247048]
[1768334838940,0.03892383,3211.4,3209.9,0.99247048]
[1768334839107,0.244,3211.3,3209.8,0.001]
[1768334839307,6.22839524,3211.1,3209.8,0.001]
[1768334839507,0.03892868,3211.0,3210.6,0.001]
[1768334839732,1.62486706,3210.9,3209.8,0.001]
[1768334839925,0.244,3210.8,3209.8,0.001]
[1768334841237,0.99813467,3210.6,3209.8,0.001]
[1768334842037,6.2291712,3210.7,3209.8,0.001]
[1768334842038,3.1145856,3210.7,3209.8,0.001]
[1768334842236,0.244,3210.5,3209.8,0.001]
[1768334842840,0.62673239,3210.9,3209.8,0.001]
[1768334843029,0.244,3210.8,3209.8,0.99347048]
[1768334843345,0.244,3210.8,3210.0,0.99247048]
[1768334843531,0.244,3210.9,3210.0,0.99247048]
[1768334844444,0.244,3210.9,3210.0,1.02362312]
[1768334844640,0.99813467,3211.9,3210.1,0.99247048]
[1768334844844,7.46897859,3211.9,3210.3,0.99247048]
[1768334845643,0.244,3211.8,3210.4,1.02361924]
[1768334845843,0.244,3211.8,3210.4,0.99247048]
[1768334846148,1.24213467,3211.8,3210.4,0.99247048]
[1768334846519,0.03892019,3211.7,3210.4,0.99247048]
[1768334846855,1.03705486,3211.7,3209.9,0.99247048]
[1768334847054,3.274,3211.6,3209.9,0.99247048]
[1768334847354,0.99813467,3211.4,3209.9,0.99247048]
[1768334847536,0.99813467,3211.2,3209.9,0.99247048]
[1768334847845,0.99813467,3211.0,3209.8,0.001]
[1768334848032,0.99813467,3210.8,3209.8,0.001]
[1768334848357,0.03893232,3210.7,3209.8,0.001]
[1768334849647,3.11468261,3210.6,3209.8,0.001]
[1768334849856,0.35429623,3210.5,3209.8,0.001]
[1768334850227,0.31536149,3210.5,3209.8,0.001]
[1768334851046,0.31536149,3210.5,3210.1,0.001]
[1768334851236,0.31536149,3210.5,3209.8,0.001]
[1768334851747,3.11487665,3210.4,3209.8,0.001]
[1768334851936,0.89850504,3210.3,3209.8,0.001]
[1768334854247,4.01349957,3210.3,3209.8,0.001]
[1768334854861,0.89850504,3210.3,3209.8,0.001]
[1768334856455,0.244,3210.3,3209.8,0.001]
[1768334856655,1.04076875,3211.1,3209.8,0.001]
[1768334856864,6.4727832,3210.9,3209.8,0.001]
[1768334857065,0.244,3210.8,3209.8,0.97884763]
[1768334857957,3.1145856,3210.7,3209.8,0.97884763]
[1768334858167,0.33585856,3210.6,3209.8,0.97884763]
[1768334858360,0.244,3210.5,3209.8,0.97884763]
[1768334858565,0.244,3210.5,3209.2,0.97784763]
[1768334859059,0.244,3210.5,3209.3,0.97784763]
[1768334860264,3.35887323,3210.5,3209.3,0.97784763]
[1768334860434,0.68094524,3210.4,3209.3,0.97784763]
[1768334860835,0.68094524,3210.4,3209.4,0.97784763]
[1768334861768,0.244,3210.3,3209.4,0.97784763]
[1768334862462,3.11361584,3211.7,3209.8,0.97784763]
[1768334862662,0.65943846,3211.6,3210.0,0.97784763]
[1768334862851,0.002,3210.5,3210.0,0.97784763]
[1768334863051,0.03892262,3211.5,3210.0,0.97784763]
[1768334863052,0.244,3211.0,3210.0,0.97784763]
[1768334863262,0.002,3210.8,3210.0,0.97784763]
[1768334863463,0.002,3210.8,3209.7,0.246]
[1768334864155,0.002,3210.8,3209.8,0.97784763]
[1768334864358,0.002,3210.8,3210.0,0.97784763]
[1768334864671,0.002,3210.8,3209.9,6.23072368]
[1768334864672,0.002,3210.8,3210.2,0.97784763]
[1768334866269,0.002,3210.8,3210.4,0.97784763]
[1768334866769,0.244,3211.5,3210.4,0.97784763]
[1768334868468,3.35781446,3211.5,3210.4,0.97784763]
[1768334869155,3.11538399,3212.0,3210.4,0.97784763]
[1768334869156,0.002,3212.0,3210.5,0.97784763]
[1768334869358,0.244,3211.9,3210.7,0.97784763]
[1768334870060,3.11534885,3212.0,3210.9,0.97784763]
[1768334870061,0.002,3212.0,3210.9,0.97784763]
[1768334870262,0.002,3212.0,3211.1,0.97784763]
[1768334870477,0.00280104,3212.1,3211.2,6.22820128]
[1768334870700,0.00280104,3212.1,3211.3,1.60066776]
[1768334870986,0.00280104,3212.1,3211.4,0.97784763]
[1768334872683,0.00280104,3212.1,3211.4,4.09171737]
[1768334873378,0.00280104,3212.1,3211.4,0.97784763]
[1768334873677,0.00280104,3212.1,3211.4,4.09173658]
[1768334873868,0.00280104,3212.1,3211.5,0.47145567]
[1768334874066,0.00280104,3212.1,3211.1,0.97784763]
[1768334874376,1.04076875,3212.0,3210.8,0.97784763]
[1768334874674,1.04076875,3212.0,3210.8,4.09232558]
[1768334874838,0.00280104,3212.1,3210.9,0.97784763]
[1768334875042,0.00280104,3212.1,3211.7,0.001]
[1768334875043,0.244,3212.0,3211.7,0.001]
[1768334876707,0.00280104,3212.1,3211.7,0.97884763]
[1768334876842,0.24482756,3213.1,3211.8,0.97784763]
[1768334877184,1.0796732,3213.0,3211.7,0.00180112]
[1768334877566,1.04076875,3213.0,3211.7,0.00180112]
[1768334877750,0.00082756,3213.1,3211.7,0.97964875]
[1768334877943,0.00082756,3213.1,3211.8,0.97784763]
[1768334877944,0.244,3213.0,3211.8,0.97784763]
[1768334878546,1.28476875,3213.0,3211.7,0.00180112]
[1768334878783,3.1125498,3212.8,3211.7,0.97964875]
[1768334879275,3.1125498,3212.8,3211.8,0.97784763]
[1768334880381,0.00082756,3213.1,3211.8,0.97784763]
[1768334880550,0.244,3212.7,3212.0,0.97784763]
[1768334881568,0.00082756,3213.1,3212.1,0.97784763]
[1768334881766,3.11310633,3213.1,3211.8,0.97784763]
[1768334882168,6.2253851,3213.1,3211.8,0.97784763]
[1768334882371,0.03890445,3213.0,3211.8,0.97784763]
[1768334882572,0.244,3212.9,3211.8,0.97784763]
[1768334882779,6.22529336,3212.7,3211.7,0.00180112]
[1768334883282,0.03890929,3212.6,3211.7,0.00180112]
[1768334884771,6.22568092,3212.5,3211.7,0.00180112]
[1768334884973,0.03891171,3212.4,3211.7,0.00180112]
[1768334885211,0.244,3212.3,3211.7,0.00180112]
[1768334885499,0.03891413,3212.2,3211.7,0.00180112]
[1768334886120,0.244,3212.3,3211.7,0.00180112]
[1768334886697,0.246,3212.3,3211.7,0.00180112]
[1768334887000,3.35904347,3212.3,3211.7,0.00180112]
[1768334887300,0.65884913,3212.3,3211.7,0.00180112]
[1768334887456,0.246,3212.3,3211.7,0.00180112]
[1768334890583,3.3590549,3212.3,3211.7,0.00180112]
[1768334890788,3.39796782,3212.3,3211.7,0.00180112]
[1768334891089,7.52815265,3212.3,3211.7,0.00180112]
[1768334891261,0.28983279,3212.2,3211.7,0.00180112]
[1768334891461,0.77790725,3212.1,3211.7,0.00180112]
[1768334892080,0.77870837,3212.1,3211.1,1.03740086]
[1768334893097,3.89199687,3212.1,3211.1,1.03740086]
[1768334894184,0.29032438,3212.0,3211.1,1.03740086]
[1768334894383,7.00528537,3212.1,3211.1,1.03740086]
[1768334894582,0.99087438,3212.0,3211.1,1.03740086]
[1768334894764,0.70052854,3212.0,3211.1,1.03740086]
[1768334895597,3.11342196,3211.9,3211.1,1.03740086]
[1768334895799,0.244,3211.8,3211.1,1.03740086]
[1768334898176,0.244,3211.8,3211.2,0.93299452]
[1768334898812,0.244,3211.8,3211.4,0.001]
[1768334899612,0.244,3211.8,3211.4,0.93399452]
[1768334900611,0.244,3211.8,3211.4,0.001]
[1768334901118,0.244,3211.9,3211.5,0.93299452]
[1768334902298,0.244,3211.9,3211.4,0.001]
[1768334902719,0.244,3211.9,3211.4,0.93399452]
[1768334903231,0.24480112,3212.1,3211.5,0.93299452]
[1768334903801,0.24480112,3212.1,3211.6,0.93299452]
[1768334904005,0.00080112,3212.1,3211.7,0.93299452]
[1768334904823,0.29086623,3212.0,3211.4,0.001]
[1768334904992,0.29086623,3211.9,3211.4,0.001]
[1768334905200,0.244,3211.8,3211.4,0.001]
[1768334905818,0.00080112,3212.1,3211.4,0.93399452]
[1768334906020,0.53489093,3212.0,3211.5,0.93299452]
[1768334906241,0.244,3212.0,3211.5,0.93299452]
[1768334909515,0.244,3212.0,3211.4,0.001]
[1768334909845,0.29101849,3211.9,3211.4,0.001]
[1768334910065,0.244,3212.0,3211.4,0.93399452]
[1768334910372,0.244,3212.0,3211.7,0.001]
[1768334910740,0.246,3212.0,3211.7,0.001]
[1768334911243,0.29106419,3211.9,3211.7,0.001]
[1768334911546,0.246,3212.0,3211.7,0.001]
[1768334911742,0.29107444,3211.9,3211.7,0.93399452]
[1768334911946,0.002,3212.0,3211.7,0.93399452]
[1768334912556,0.002,3212.0,3211.8,0.93299452]
[1768334913073,0.002,3212.0,3211.7,0.001]
[1768334914274,0.002,3212.0,3211.4,0.001]
[1768334914563,0.244,3211.9,3211.0,0.93299452]
[1768334915134,1.19662533,3211.9,3210.9,3.11434408]
[1768334915330,1.19662533,3211.9,3210.9,3.83808593]
[1768334915534,1.19662533,3211.9,3210.9,0.72374185]
[1768334915743,1.19662533,3211.9,3210.7,4.1231394]
[1768334915969,1.19662533,3211.9,3210.7,1.00855726]
[1768334916385,1.19662533,3211.9,3210.9,3.11434294]
[1768334916795,1.19662533,3211.9,3210.8,4.12304586]
[1768334916954,1.19662533,3211.9,3210.8,7.23753446]
[1768334917275,0.244,3211.9,3211.0,1.00855726]
[1768334918909,0.244,3211.9,3211.0,4.12283935]
[1768334919197,0.244,3211.9,3211.1,1.00855726]
[1768334920090,0.002,3212.0,3211.3,1.00855726]
[1768334920395,0.002,3212.3,3211.7,1.00855726]
[1768334920558,0.2827,3212.1,3211.7,1.00935846]
[1768334920758,0.26715177,3212.1,3211.7,1.00935846]
[1768334921060,0.20769795,3212.2,3211.8,4.12207615]
[1768334921260,0.35605364,3212.2,3212.1,0.01975884]
[1768334922110,0.12716201,3212.2,3212.1,0.01975884]
[1768334922263,0.12237461,3212.2,3212.1,0.01975884]
[1768334922657,0.0800787,3212.4,3212.1,0.01975884]
[1768334922983,0.13727778,3212.4,3212.1,0.01975884]
[1768334923485,0.13727778,3212.4,3212.1,0.4751577]
[1768334923686,0.002,3212.2,3212.1,0.4751577]
[1768334924266,0.13727778,3212.4,3212.1,0.4751577]
[1768334924468,0.06863889,3212.4,3212.1,0.4751577]
[1768334925813,0.06863889,3212.4,3212.1,0.01975884]
[1768334927816,0.06863889,3212.4,3212.1,4.14154157]
[1768334928176,0.06863889,3212.4,3212.1,1.0283161]
[1768334929082,0.05883333,3212.4,3212.1,1.0283161]
[1768334929476,0.03704956,3212.4,3212.2,1.00855726]
[1768334929711,0.002,3212.6,3212.3,0.72546936]
[1768334930591,0.002,3212.6,3212.1,0.01975884]
[1768334932302,0.002,3212.6,3212.1,3.13292803]
[1768334932915,0.002,3212.6,3212.2,1.00855726]
[1768334933283,0.00082756,3213.1,3212.6,1.00855726]
[1768334933486,0.246,3213.3,3212.8,1.00855726]
[1768334933487,0.002,3213.3,3212.8,1.00855726]
[1768334933791,0.002,3213.3,3212.9,0.4121178]
[1768334934102,0.002,3213.3,3212.6,3.11267007]
[1768334934705,0.002,3213.3,3212.7,3.1126302]
[1768334934911,0.002,3213.3,3212.5,1.00855726]
[1768334935109,0.002,3213.3,3212.6,3.11273983]
[1768334935414,0.002,3213.3,3212.5,1.00855726]
[1768334935918,0.002,3213.3,3212.5,4.55803168]
[1768334936286,0.002,3213.3,3212.6,1.00855726]
[1768334937702,0.002,3213.3,3212.8,1.00855726]
[1768334938113,0.002,3213.3,3212.4,1.00955726]
[1768334938618,0.95462533,3213.3,3212.4,0.001]
[1768334939522,1.19862533,3213.3,3212.4,0.001]
[1768334939689,4.31074833,3213.3,3212.4,0.001]
[1768334939889,0.95262533,3213.2,3212.4,0.001]
[1768334940608,0.99152856,3213.1,3212.4,0.001]
[1768334940918,0.95262533,3213.1,3212.4,0.001]
[1768334941992,1.62990016,3213.3,3212.4,0.001]
[1768334942194,4.74196797,3213.3,3212.4,0.001]
[1768334942384,4.31069314,3213.3,3212.4,0.001]
[1768334942720,1.19862533,3213.3,3212.4,0.001]
[1768334943628,0.246,3213.3,3212.4,1.00955726]
[1768334943927,0.246,3213.3,3212.5,1.00855726]
[1768334944225,0.33579941,3213.2,3212.5,1.00855726]
[1768334944602,0.246,3213.3,3212.5,1.00855726]
[1768334944803,0.002,3213.3,3212.7,1.00855726]
[1768334945724,0.002,3213.3,3212.4,4.07198591]
[1768334945896,0.92852604,3213.3,3212.4,3.11389687]
[1768334946097,0.92852604,3213.3,3212.4,3.11386652]
[1768334946292,0.002,3213.3,3212.5,0.51379216]
[1768334946894,0.002,3213.0,3212.5,0.51379216]
[1768334947835,0.002,3213.0,3212.5,4.58463623]
[1768334948541,0.002,3213.0,3212.5,1.4718812]
[1768334948737,0.002,3213.0,3212.5,4.07090575]
[1768334948938,0.002,3213.0,3212.4,0.001]
[1768334950338,0.002,3213.0,3212.4,0.95908904]
[1768334953338,0.002,3213.0,3212.4,3.11387782]
[1768334953547,0.002,3213.0,3212.5,0.95808904]
[1768334953911,0.002,3213.0,3212.6,0.98921647]
[1768334954116,0.002,3213.0,3212.7,0.95808904]
[1768334956282,0.002,3213.0,3212.7,4.07070168]
[1768334956849,0.002,3213.0,3212.7,0.95808904]
[1768334957240,0.002,3213.0,3212.4,0.95494458]
[1768334957436,0.002,3213.0,3212.6,3.11273813]
[1768334957647,0.002,3213.3,3212.9,0.95394458]
[1768334958335,0.04090081,3213.3,3212.6,0.71806102]
[1768334958521,0.96056947,3213.3,3212.4,4.3118265]
[1768334958723,0.96056947,3213.3,3212.4,3.11388192]
[1768334958917,0.99947028,3213.3,3212.8,0.001]
[1768334959151,0.95856947,3213.1,3212.8,0.001]
[1768334960528,0.002,3213.3,3212.8,0.001]
[1768334960529,0.95856947,3212.9,3212.8,0.001]
[1768334960924,0.95856947,3212.9,3212.4,0.001]
[1768334961251,0.95856947,3212.7,3212.4,0.001]
[1768334961727,0.95856947,3212.5,3212.4,0.001]
[1768334962174,0.95856947,3212.4,3211.4,0.00082798]
[1768334962318,0.95856947,3212.4,3210.6,0.95394458]
[1768334962319,0.95856947,3211.7,3210.7,4.06850895]
[1768334962541,0.95856947,3211.7,3210.3,0.244]
[1768334962542,0.244,3211.8,3210.9,0.95394458]
[1768334962745,0.244,3211.8,3210.8,10.8760192]
[1768334962746,0.244,3211.8,3211.1,0.95394458]
[1768334964885,0.244,3211.8,3211.1,4.06810839]
[1768334965487,0.244,3211.8,3211.2,0.95394458]
[1768334965695,3.1131438,3212.2,3211.2,0.95394458]
[1768334965696,3.11289577,3212.5,3211.5,0.95394458]
[1768334965985,0.29034202,3212.4,3211.7,0.00080128]
[1768334966187,3.35689577,3212.5,3211.7,0.00080128]
[1768334966400,0.29028159,3212.4,3211.7,0.95474586]
[1768334966552,0.95856947,3213.0,3211.7,0.95474586]
[1768334966553,3.11235605,3213.0,3212.0,0.95394458]
[1768334966758,0.244,3212.8,3212.0,1.51715676]
[1768334967249,0.95856947,3212.7,3211.7,0.00080128]
[1768334967566,0.99747755,3212.7,3211.7,0.00080128]
[1768334968090,0.95856947,3212.7,3211.7,0.00080128]
[1768334968390,3.35660542,3212.8,3211.8,0.95394458]
[1768334968692,3.35660542,3212.8,3211.9,0.40682961]
[1768334968855,0.95856947,3212.7,3211.7,0.00080128]
[1768334969053,3.11284046,3212.5,3211.7,0.00080128]
[1768334969776,4.071321,3212.6,3211.7,0.00080128]
[1768334970289,7.18407253,3212.6,3211.7,0.00080128]
[1768334970476,0.002,3212.2,3211.7,0.00080128]
[1768334970680,0.002,3212.2,3211.7,0.4076562]
[1768334972165,0.002,3212.2,3211.7,0.00080128]
[1768334975797,0.9569274,3212.2,3211.7,0.00080128]
[1768334975980,0.99384275,3212.1,3211.7,0.00080128]
[1768334976903,0.9549274,3212.1,3211.7,0.00080128]
[1768334977672,3.11332503,3212.0,3211.7,0.00080128]
[1768334977877,0.40682524,3211.9,3211.7,0.00080128]
[1768334978598,0.40682524,3211.9,3211.2,0.001]
[1768334978599,0.99384638,3211.8,3211.2,0.001]
[1768334978803,1.1989274,3211.8,3211.2,0.001]
[1768334979887,3.11361584,3211.7,3211.2,0.001]
[1768334980087,0.43125432,3211.6,3211.2,0.001]
[1768334981105,0.244,3211.8,3211.2,0.001]
[1768334982864,3.357519,3211.8,3211.2,0.001]
[1768334983213,0.9549274,3211.7,3211.2,0.001]
[1768334983561,0.244,3211.8,3211.2,0.93659074]
[1768334983785,0.03892019,3211.7,3211.2,0.001]
[1768334983992,0.9549274,3211.6,3211.2,0.001]
[1768334984199,0.9549274,3211.4,3210.5,4.05194507]
[1768334984399,0.56443044,3211.5,3210.6,0.93559074]
[1768334984826,0.9549274,3211.4,3210.5,0.0016]
[1768334984974,0.9549274,3211.2,3210.5,0.0016]
[1768334987075,3.1148734,3212.5,3210.9,4.65045678]
[1768334987076,0.002,3212.5,3210.9,4.65045678]
[1768334987277,0.9549274,3211.9,3210.9,4.65045678]
[1768334987502,0.9549274,3211.9,3210.9,5.20906153]
[1768334987820,0.9549274,3211.9,3210.6,4.65045678]
[1768334987821,0.9549274,3211.8,3210.6,4.65045678]
[1768334988487,0.9549274,3211.6,3210.6,4.65045678]
[1768334988834,1.1989274,3211.5,3210.6,4.65045678]
[1768334989109,1.1989274,3211.5,3210.6,7.76512437]
[1768334989316,1.1989274,3211.5,3210.6,4.29638505]
[1768334989600,0.9549274,3211.4,3210.6,1.18171746]
[1768334989784,0.9549274,3211.4,3210.5,0.0016]
[1768334992108,0.9549274,3211.4,3210.5,0.93719074]
[1768334992614,0.9549274,3211.2,3210.5,0.0016]
[1768334992917,0.03892747,3211.1,3210.5,0.0016]
[1768334993278,0.35423234,3211.1,3210.5,0.0016]
[1768334993793,0.35423234,3211.1,3210.8,0.001]
[1768334994887,3.46844148,3211.1,3210.8,0.001]
[1768334995794,0.35423234,3211.1,3210.8,0.001]
[1768334996213,3.46847808,3211.1,3210.8,0.001]
[1768334996383,0.34684781,3211.0,3210.8,0.001]
[1768334996799,0.03892989,3210.9,3210.8,0.001]
[1768334998115,0.9549274,3210.8,3210.5,0.0016]
[1768334999214,4.0694739,3210.8,3210.5,0.0016]
[1768334999398,0.43134739,3210.7,3210.5,0.0016]
[1768335000396,0.43134739,3210.7,3209.7,0.93659074]
[1768335000397,0.9549274,3210.6,3209.7,0.93659074]
[1768335000597,0.9549274,3210.6,3209.7,0.001]
[1768335001413,0.9549274,3210.6,3208.6,0.244]
[1768335001414,0.9549274,3210.3,3208.6,0.93559074]
[1768335001613,15.73511848,3210.5,3208.6,0.93559074]
[1768335001614,0.9549274,3210.1,3208.6,0.93559074]
[1768335001995,0.9549274,3210.1,3208.8,0.93559074]
[1768335002226,0.244,3210.0,3208.8,0.93559074]
[1768335002403,1.1989274,3210.0,3208.8,0.93559074]
[1768335002606,0.9549274,3209.9,3208.5,0.9363917]
[1768335002915,0.9549274,3209.9,3208.5,0.00080096]
[1768335003291,0.00080096,3208.9,3208.0,0.93559074]
[1768335003497,0.244,3208.8,3207.8,0.93659074]
[1768335004015,0.244,3208.8,3207.8,1.34199024]
[1768335004414,0.244,3208.8,3207.8,4.45937731]
[1768335004604,0.244,3208.8,3207.8,1.34199024]
[1768335005542,3.36049714,3208.8,3208.1,0.001]
[1768335005704,0.64776349,3208.7,3208.1,0.001]
[1768335006101,1.61901355,3208.7,3208.1,0.001]
[1768335006501,1.61901355,3208.7,3207.8,0.001]
[1768335006721,0.97125006,3208.6,3207.8,0.001]
[1768335007125,0.64776349,3208.7,3207.8,0.96034956]
[1768335007438,0.244,3208.6,3208.0,0.95934956]
[1768335008534,0.244,3208.6,3207.8,0.001]
[1768335008699,7.44867612,3208.6,3207.8,0.001]
[1768335008904,0.97125006,3208.5,3207.8,0.001]
[1768335009330,0.245,3208.4,3207.8,0.001]
[1768335009537,0.5811713,3208.4,3207.8,0.001]
[1768335009734,3.69801549,3208.4,3207.8,0.001]
[1768335009914,0.245,3208.3,3207.8,0.001]
[1768335010114,0.00080096,3208.9,3207.8,0.96034956]
[1768335010310,0.245,3208.8,3207.8,0.96034956]
[1768335010618,0.6478607,3208.7,3207.8,0.96034956]
[1768335011033,0.00080096,3208.9,3208.0,0.95934956]
[1768335011255,0.00080096,3208.9,3208.2,0.95934956]
[1768335011530,0.00080096,3208.9,3207.8,0.001]
[1768335011531,0.97205102,3208.9,3207.8,0.001]
[1768335011736,1.71636805,3208.8,3207.8,0.001]
[1768335011901,0.97125006,3208.7,3207.8,0.001]
[1768335013038,0.245,3208.6,3207.8,0.001]
[1768335013236,0.97125006,3208.7,3207.8,0.001]
[1768335013418,3.1167212,3208.5,3207.8,0.001]
[1768335013622,0.33617212,3208.4,3207.8,0.001]
[1768335014506,0.97125006,3208.3,3207.5,0.001]
[1768335015417,7.20546968,3208.1,3207.2,0.001]
[1768335015617,0.245,3208.0,3207.2,0.001]
[1768335016249,3.1169155,3208.3,3207.2,0.96034956]
[1768335016541,0.59030876,3208.2,3207.2,0.96034956]
[1768335016909,0.59030876,3208.2,3207.8,0.001]
[1768335017109,0.34530876,3208.2,3207.8,0.001]
[1768335017347,0.245,3208.1,3207.8,0.001]
[1768335017532,0.245,3208.1,3207.2,0.001]
[1768335017533,3.15614675,3208.0,3207.2,0.001]
[1768335017732,3.8425042,3208.0,3207.2,0.001]
[1768335017929,6.95971118,3208.0,3207.2,0.001]
[1768335018135,3.80356443,3208.0,3207.2,0.001]
[1768335018349,6.95971118,3208.0,3207.2,0.001]
[1768335018535,6.92077141,3208.0,3207.2,0.001]
[1768335018713,0.71657714,3207.9,3207.2,0.001]
[1768335019787,3.83394105,3207.9,3207.2,0.001]
[1768335019982,0.245,3207.8,3207.2,0.001]
[1768335020754,3.11701265,3208.2,3207.2,1.00168745]
[1768335020987,0.245,3208.1,3207.2,1.00168745]
[1768335021186,0.33620127,3208.0,3207.2,0.001]
[1768335021572,0.245,3207.9,3207.2,0.001]
[1768335021766,0.33620127,3208.0,3207.2,0.001]
[1768335022078,0.245,3207.9,3207.2,1.00168745]
[1768335022281,3.11703584,3208.2,3207.2,1.00168745]
[1768335022481,3.11895909,3208.3,3207.2,1.00168745]
[1768335022678,0.245,3208.2,3207.2,1.00168745]
[1768335023588,0.9500412,3208.1,3207.2,0.001]
[1768335023961,0.91110143,3207.9,3207.2,0.001]
[1768335024195,0.75349131,3207.8,3207.2,0.001]
[1768335024402,0.245,3207.7,3207.2,0.001]
[1768335024688,0.03893977,3207.6,3207.2,0.001]
[1768335024854,0.245,3207.7,3207.2,0.001]
[1768335025056,0.03893977,3207.6,3207.2,0.001]
[1768335025261,0.245,3207.7,3207.2,0.001]
[1768335025686,0.43595927,3207.7,3207.2,0.001]
[1768335026083,3.59248561,3207.7,3206.8,0.7666775]
[1768335026298,7.62117361,3207.7,3206.8,0.7666775]
[1768335026497,0.91110143,3207.6,3206.8,0.7666775]
[1768335026794,0.03893977,3207.5,3206.8,0.7666775]
[1768335027000,0.9500412,3207.5,3206.3,1.00068745]
[1768335027293,0.9500412,3207.5,3206.0,4.11981866]
[1768335027504,6.42613241,3207.7,3206.3,1.00068745]
[1768335027663,6.42613241,3207.7,3206.4,1.00068745]
[1768335027995,0.245,3207.6,3206.5,1.00068745]
[1768335028176,6.2353858,3207.5,3206.5,1.00068745]